Cogmind - Beta 11 X7 @@@ ROGUE MODE // 2021.09.14 @ 05:09:41 Player: leiavoia Result: Destroyed by Enhanced Grunt with Neutron Cannon Performance ------------- Evolutions (3) 1500 Regions Visited (6) 1200 Robots Destroyed (49) 245 Value Destroyed (1291) 1291 Prototype IDs (18) 360 Alien Tech Used (0) 0 Bonus (319) 319 TOTAL SCORE: 4915 Bonus ------- High Alert Combat Kills 19 Met Data Miner 300 Cogmind --------- Core Integrity 0/700 Matter 8/300 Energy 100/100 System Corruption 2% Temperature Cool (6) Movement Core (1350) Ox26 Location -7/Data Miner Parts ------- > --- POWER (1) -------- (None) > --- PROPULSION (3) --- (None) > --- UTILITY (6) ------ Huge Storage Unit Machine Analyzer Visual Processing Unit Improved Signal Interpreter Advanced Targeting Computer > --- WEAPON (3) ------- (None) > --- INVENTORY (25) --- Compact Wheel Armored Huge Wheel Armored Huge Wheel Armored Huge Wheel Huge Storage Unit High-capacity Matter Pod (135) Improved Sensor Array Hardened Light Armor Plating Tractor Beam Field Recycling Unit (0) Gauss Rifle Precision Assault Rifle Precision Assault Rifle Precision Assault Rifle Peak State ------------ > --- POWER ------------ Improved Ion Engine > --- PROPULSION ------- Armored Wheel Armored Huge Wheel > --- UTILITY ---------- Huge Storage Unit Visual Processing Unit Improved Sensor Array Improved Signal Interpreter Advanced Targeting Computer Hacking Suite > --- WEAPON ----------- Precision Assault Rifle Precision Assault Rifle Great Axe > --- INVENTORY -------- Ion Engine Light Treads Compact Wheel Armored Huge Wheel Armored Huge Wheel Armored Huge Wheel Heat Sink Huge Storage Unit High-capacity Matter Pod Light Armor Plating Hardened Light Armor Plating Improved Light Armor Plating Tractor Beam Field Recycling Unit Precision Assault Rifle Precision Assault Rifle Gauss Cannon Gauss Cannon Gauss Cannon Gauss Cannon Advanced EMP Blaster Rocket Launcher [Rating: 48] Favorites ----------- Power Improved Ion Engine Engine Improved Ion Engine Propulsion Compact Wheel Treads Light Treads Wheel Compact Wheel Utility Huge Storage Unit Device Sensor Array Storage Huge Storage Unit Processor Visual Processing Unit Hackware Hacking Suite Protection Light Armor Plating Weapon Precision Assault Rifle Ballistic Gun Precision Assault Rifle Ballistic Cannon Gauss Cannon Launcher Advanced EMP Blaster Impact Weapon Heavy Hammer Slashing Weapon Great Axe Build | -11 -10 -9 -8 -7 -7 -7 ------- Run | Scr Mat Mat Mat Fac Low Dat Slots Evolved 6 | . . 2 2 2 . . Power . | . . . . . . . Propulsion 1 | . . . 1 . . . Utility 4 | . . 1 1 2 . . Weapon 1 | . . 1 . . . . Parts Attached 80 | 6 13 20 16 15 1 9 Power 6 | 1 2 1 1 . . 1 Engine 6 | 1 2 1 1 . . 1 Core . | . . . . . . . Reactor . | . . . . . . . Propulsion 18 | 2 4 8 3 . . 1 Treads 7 | 1 2 3 1 . . . Leg . | . . . . . . . Wheel 11 | 1 2 5 2 . . 1 Hover . | . . . . . . . Flight . | . . . . . . . Utility 23 | 1 4 2 5 9 . 2 Device 6 | . 2 . 3 1 . . Storage 3 | 1 2 . . . . . Processor 5 | . . 1 1 3 . . Hackware 1 | . . . . 1 . . Protection 8 | . . 1 1 4 . 2 Artifact . | . . . . . . . Weapon 33 | 2 3 9 7 6 1 5 Energy Gun . | . . . . . . . Energy Cannon . | . . . . . . . Ballistic Gun 15 | 2 2 7 3 . . 1 Ballistic Cannon 8 | . . . 2 3 1 2 Launcher 5 | . 1 1 1 . . 2 Special Weapon . | . . . . . . . Impact Weapon 3 | . . 1 1 1 . . Slashing Weapon 2 | . . . . 2 . . Piercing Weapon . | . . . . . . . Special Melee Weapon . | . . . . . . . Unidentified Prototypes 2 | . . . 2 . . . Parts Lost 21 | . 2 4 . 1 . 14 Power 3 | . 1 . . . . 2 Propulsion 5 | . 1 1 . . . 3 Utility 3 | . . 1 . . . 2 Weapon 10 | . . 2 . 1 . 7 Highest Loss Streak 14 | . 1 1 . 1 . 14 Average Slot Usage (%) 91 | . 93 96 95 87 91 82 Engine 9 | . 13 11 9 7 7 5 Treads 2 | . 9 1 5 . . . Wheel 16 | . 18 20 18 15 15 11 Device 3 | . 3 3 3 5 . . Storage 10 | . 18 11 9 7 7 7 Processor 16 | . . 10 17 21 30 30 Hackware 2 | . . . . 3 7 3 Protection 2 | . . 5 5 2 . 2 Ballistic Gun 17 | . 27 29 21 12 7 3 Ballistic Cannon 4 | . . . 2 3 14 14 Slashing Weapon 1 | . . . . 3 . . Naked Turns . | . . . . . . . Heaviest Build 128 | 13 128 97 103 108 105 115 Greatest Support 44 | 20 32 40 44 40 40 40 Greatest Overweight (x) 26 | 1 7 6 3 2 2 26 Average Overweight (x) 2 | . 1 2 2 2 2 2 Largest Inventory Capacity 25 | 8 25 25 25 25 25 25 Average Capacity 23 | 7 17 25 25 25 25 25 Most Carried 25 | 4 25 25 25 25 25 25 Average Carried 21 | 2 11 23 24 24 25 23 Final Capacity 25 | 8 25 25 25 25 25 25 Final Carried 25 | 4 25 25 25 25 25 17 Class Distribution -------------------- 49% | Mutant 23% | Gunner 11% | Skirmisher 8% | Assassin 5% | Tank Dominant Class ---------------- Mutant | -10/Materials Tank | -9/Materials Gunner | -8/Materials Mutant | -7/Factory Gunner | -7/Lower Caves Gunner | -7/Data Miner Resources | -11 -10 -9 -8 -7 -7 -7 ----------- Run | Scr Mat Mat Mat Fac Low Dat Matter Collected 1905 | 260 379 410 177 647 25 7 Remotely . | . . . . . . . Salvage Created 1657 | . 352 573 176 556 . . Parts 105 | . 27 41 10 27 . . Haulers Intercepted 1 | . . . 1 . . . Recyclers Shooed 1 | . 1 . . . . . Parts Field Recycled . | . . . . . . . Retrieved Matter . | . . . . . . . Parts Self-Destructed . | . . . . . . . Prevented . | . . . . . . . Kills | -11 -10 -9 -8 -7 -7 -7 ------- Run | Scr Mat Mat Mat Fac Low Dat Combat Hostiles Destroyed 35 | . 10 13 1 11 . . Guns 26 | . 8 10 1 7 . . Cannons 4 | . . . . 4 . . AOE 5 | . 2 3 . . . . Classes Destroyed 12 | . 4 3 1 4 . . Worker 4 | . . 3 . 1 . . Builder 1 | . 1 . . . . . Hauler 1 | . . . 1 . . . Recycler 4 | . 1 1 1 1 . . Mechanic 2 | . . . . 2 . . Watcher 2 | . . 1 1 . . . Swarmer 13 | . 6 5 . 2 . . Grunt 15 | . 4 5 1 5 . . Duelist 1 | . . . . 1 . . Sentry 4 | . . 3 . 1 . . Hunter 1 | . . . . 1 . . Programmer 1 | . . . . 1 . . Best Kill Streak 6 | . 5 6 1 4 . . Combat Bots Only 5 | . 5 4 1 3 . . Max Kills in Single Turn 4 | . 2 4 1 1 . . Gunslinging . | . . . . . . . Exploded 2 | . 2 1 . . . . Melee . | . . . . . . . Uniques/NPCs Destroyed . | . . . . . . . Combat | -11 -10 -9 -8 -7 -7 -7 -------- Run | Scr Mat Mat Mat Fac Low Dat Damage Taken 4652 | . 701 534 87 961 . 2369 Core 986 | . 157 86 17 116 . 610 Absorbed by Shields . | . . . . . . . Core Remaining (%) 77 | 100 37 78 96 . . . Volleys Fired 136 | . 35 28 12 48 . 13 Largest 3 | . 2 3 3 3 . 3 Hottest 144 | . 50 76 94 104 . 144 Shots Fired 304 | . 67 79 31 98 . 29 Gun 224 | . 65 75 25 58 . 1 Cannon 71 | . . . 6 40 . 25 Launcher 9 | . 2 4 . . . 3 Special . | . . . . . . . Kinetic 295 | . 65 75 31 98 . 26 Thermal . | . . . . . . . Explosive 6 | . 2 4 . . . . Electromagnetic 3 | . . . . . . 3 Robot Hit Streak 16 | . 7 8 3 16 . 16 Robot Miss Streak 6 | . 6 5 3 2 . 3 Penetration Max 1 | . . . . 1 . . Secondary Targets 2 | . . 2 . . . . Max Gunslinging Chain 1 | . . 1 . . . . Shots Hit Robots 192 | . 37 45 16 75 . 19 Core Hits 84 | . 21 25 6 27 . 5 Critical Kills 2 | . . 1 1 . . . Critical Parts Destroyed . | . . . . . . . Critical Strikes 12 | . . 1 1 6 . 4 Destroy 3 | . . 1 1 . . 1 Blast 9 | . . . . 6 . 3 Melee Attacks 29 | . . 4 1 24 . . Impact 28 | . . 4 1 23 . . Slashing 1 | . . . . 1 . . Piercing . | . . . . . . . Sneak Attacks 1 | . . . . 1 . . Combat Hostiles . | . . . . . . . Follow-up Attacks . | . . . . . . . Damage Inflicted 4121 | . 578 986 275 1730 . 552 Guns 2119 | . 410 579 244 868 . 18 Cannons 1197 | . . . 31 745 . 421 Explosions 688 | . 168 407 . . . 113 Melee 117 | . . . . 117 . . Ramming . | . . . . . . . Kinetic 3316 | . 410 579 275 1613 . 439 Thermal . | . . . . . . . Explosive 575 | . 168 407 . . . . Electromagnetic 113 | . . . . . . 113 Impact . | . . . . . . . Slashing 117 | . . . . 117 . . Piercing . | . . . . . . . Highest Corruption 4 | . 4 . . 2 2 2 Average Corruption 1 | . 3 . . 1 2 2 Corruption Purged . | . . . . . . . Effects 4 | . . . . . 2 2 Message Errors 3 | . . . . . 1 2 Data Loss (minor) 1 | . . . . . 1 . Overload Shots . | . . . . . . . Overflow Damage 75 | . . 60 . 15 . . Projectiles 15 | . . . . 15 . . Explosions 60 | . . 60 . . . . Melee . | . . . . . . . Knockbacks 13 | . . . . 9 . 4 Impact . | . . . . . . . Kinetic 13 | . . . . 9 . 4 Secondary . | . . . . . . . Self-Inflicted Damage 70 | . . 70 . . . . Shots 2 | . . 2 . . . . Rammed . | . . . . . . . Targets Rammed . | . . . . . . . Kicked . | . . . . . . . Crushed . | . . . . . . . Highest Temperature 484 | . 27 53 36 106 . 484 Average Temperature 59 | . 10 15 15 30 . 226 Received Heat Transfer 915 | . 129 156 45 255 . 330 Effects 2 | . . . . . . 2 Interference 2 | . . . . . . 2 Siege Activations . | . . . . . . . Robots Corrupted . | . . . . . . . Combat Hostiles . | . . . . . . . Parts Fried . | . . . . . . . Impact Corruptions . | . . . . . . . Robots Melted . | . . . . . . . Combat Hostiles . | . . . . . . . Parts Melted . | . . . . . . . Heat Transferred . | . . . . . . . Parts Sabotaged . | . . . . . . . Parts Stolen . | . . . . . . . Parts Stripped . | . . . . . . . Power Chain Reactions . | . . . . . . . Missiles Intercepted . | . . . . . . . Alert | -11 -10 -9 -8 -7 -7 -7 ------- Run | Scr Mat Mat Mat Fac Low Dat Peak Influence 448 | . 210 448 167 197 . . Initial 104 | . . 31 104 . . . Average 97 | . 62 225 116 62 . . Maximum Alert Level 2 | . 1 2 . . . . Low Security (%) 90 | 100 92 52 100 100 . . Level 1 6 | . 7 26 . . . . Level 2 3 | . . 20 . . . . Level 3 . | . . . . . . . Level 4 . | . . . . . . . Level 5 . | . . . . . . . High Security . | . . . . . . . Max Security . | . . . . . . . Squads Dispatched 5 | . 1 1 . 3 . . Investigation . | . . . . . . . Extermination 1 | . . . . 1 . . Reinforcement 4 | . 1 1 . 2 . . Assault . | . . . . . . . Garrison . | . . . . . . . Intercept . | . . . . . . . Construction Impeded . | . . . . . . . Haulers Reinforced 1 | . . . . 1 . . Active Scanning Responses . | . . . . . . . Cargo Convoy Interrupts . | . . . . . . . Stealth | -11 -10 -9 -8 -7 -7 -7 --------- Run | Scr Mat Mat Mat Fac Low Dat Distress Signals 3 | . 1 2 . . . . Communications Jammed . | . . . . . . . Distress Signals . | . . . . . . . Times Spotted 66 | . 18 21 3 21 . 3 Peak Tracking Total 8 | . 7 8 1 6 . 3 Tactical Retreats 2 | . . . . 2 . . Traps | -11 -10 -9 -8 -7 -7 -7 ------- Run | Scr Mat Mat Mat Fac Low Dat Traps Triggered 6 | . 3 . . 3 . . Indirectly . | . . . . . . . Trap Hack Attempts . | . . . . . . . Triggered . | . . . . . . . Disarmed . | . . . . . . . Reprogrammed . | . . . . . . . Reused . | . . . . . . . Traps Extracted . | . . . . . . . Installed . | . . . . . . . Triggered . | . . . . . . . Machines | -11 -10 -9 -8 -7 -7 -7 ---------- Run | Scr Mat Mat Mat Fac Low Dat Machines Disabled 5 | . 1 2 . 1 . 1 Max in Single Turn 1 | . 1 1 . 1 . 1 Machines Sabotaged . | . . . . . . . Garrisons Compromised . | . . . . . . . Overloaded Fab Kills . | . . . . . . . Fab Network Shutdowns . | . . . . . . . Hacking | -11 -10 -9 -8 -7 -7 -7 --------- Run | Scr Mat Mat Mat Fac Low Dat Machines Accessed 8 | . 2 . 1 1 . 4 Terminals 3 | . 1 . 1 1 . . Fabricators . | . . . . . . . Repair Stations . | . . . . . . . Recycling Units 1 | . 1 . . . . . Scanalyzers . | . . . . . . . Garrison Access . | . . . . . . . Total Hacks 41 | . 3 . 4 2 . 32 Successful 36 | . 2 . 2 . . 32 Failed 5 | . 1 . 2 2 . . Catastrophic 1 | . . . . 1 . . Database Lockouts . | . . . . . . . Manual 2 | . 2 . . . . . Terminals 8 | . 2 . 4 2 . . Fabricators . | . . . . . . . Repair Stations . | . . . . . . . Recycling Units 1 | . 1 . . . . . Scanalyzers . | . . . . . . . Garrison Access . | . . . . . . . Terminal Hacks 35 | . 1 . 2 . . 32 Record 11 | . . . . . . 11 Part Schematic 10 | . . . . . . 10 Robot Schematic 8 | . . . . . . 8 Robot Analysis 1 | . . . 1 . . . Prototype ID Bank 4 | . . . 1 . . 3 Zone Layout 1 | . 1 . . . . . Fabricator Hacks . | . . . . . . . Repair Station Hacks . | . . . . . . . Recycling Unit Hacks . | . . . . . . . Scanalyzer . | . . . . . . . Garrison Access Hacks . | . . . . . . . Unauthorized Hacks 1 | . 1 . . . . . Terminals 1 | . 1 . . . . . Track 1 | . 1 . . . . . Fabricators . | . . . . . . . Repair Stations . | . . . . . . . Recycling Units . | . . . . . . . Scanalyzers . | . . . . . . . Garrison Access . | . . . . . . . Data Cores Recovered . | . . . . . . . Used . | . . . . . . . Hacking Detections 3 | . 2 . . 1 . . Full Trace Events . | . . . . . . . Feedback Events . | . . . . . . . Feedback Blocked . | . . . . . . . Robot Schematics Acquired 8 | . . . . . . 8 Robots Built . | . . . . . . . Matter . | . . . . . . . Time . | . . . . . . . Total Robot Build Rating . | . . . . . . . Part Schematics Acquired 10 | . . . . . . 10 Parts Built . | . . . . . . . Matter . | . . . . . . . Time . | . . . . . . . Total Part Build Rating . | . . . . . . . Parts Repaired . | . . . . . . . Time . | . . . . . . . Parts Recycled . | . . . . . . . Recycled Matter . | . . . . . . . Retrieved Matter . | . . . . . . . Retrieved Components . | . . . . . . . Parts Scanalyzed . | . . . . . . . Part Schematics Acquired . | . . . . . . . Parts Damaged . | . . . . . . . Bothacking | -11 -10 -9 -8 -7 -7 -7 ------------ Run | Scr Mat Mat Mat Fac Low Dat Used RIF Installer . | . . . . . . . Robots Hacked . | . . . . . . . Non-combat . | . . . . . . . Combat . | . . . . . . . Robot Hacks Applied . | . . . . . . . Relay Couplers Released . | . . . . . . . Robots Rewired . | . . . . . . . Allies Hacked . | . . . . . . . Hacks Repelled . | . . . . . . . Allies | -11 -10 -9 -8 -7 -7 -7 -------- Run | Scr Mat Mat Mat Fac Low Dat Total Allies . | . . . . . . . Largest Group . | . . . . . . . Highest-Rated Group . | . . . . . . . Highest-Rated Ally . | . . . . . . . Total Orders . | . . . . . . . Ally Attacks . | . . . . . . . Total Damage . | . . . . . . . Kills . | . . . . . . . Allies Corrupted . | . . . . . . . Allies Melted . | . . . . . . . Intel | -11 -10 -9 -8 -7 -7 -7 ------- Run | Scr Mat Mat Mat Fac Low Dat Robot Analysis Total 1 | . . . 1 . . . Derelict Logs Recovered . | . . . . . . . Drone Launches . | . . . . . . . Drone Recoveries . | . . . . . . . Exploration | -11 -10 -9 -8 -7 -7 -7 ------------- Run | Scr Mat Mat Mat Fac Low Dat Turns Passed 3005 | 65 585 405 450 1001 312 187 Spaces Moved 1720 | 43 315 185 261 585 249 82 Core 2 | 1 . . . . . 1 Treads 121 | 22 98 1 . . . . Legs . | . . . . . . . Wheels 1597 | 20 217 184 261 585 249 81 Hover . | . . . . . . . Flight . | . . . . . . . Fastest Speed 50 | 50 100 130 125 125 125 120 Average Speed 132 | 124 143 137 138 125 125 140 Slowest Speed 1350 | 160 205 360 145 125 125 1350 Overloaded Moves . | . . . . . . . Propulsion Burnouts . | . . . . . . . Robots Hopped . | . . . . . . . Cave-ins Triggered . | . . . . . . . Exploration Rate (%) 35 | 3 67 25 23 16 37 80 Regions Visited 6 Branch Regions 2 Pre-discovered Areas 1 | . . . . . . 1 Known Exits Taken 2 | . . . . 1 1 . Unknown Exits Taken 4 | 1 1 1 1 . . . Scrap Searched 1 | . . . . . 1 . Spaces Dug 27 | . . 3 2 22 . . Terrain Destroyed 75 | . 13 26 6 30 . . Melee 26 | . . 3 1 22 . . Projectile 13 | . . . 5 8 . . AOE 36 | . 13 23 . . . . Terrain Rammed . | . . . . . . . Walls Destroyed . | . . . . . . . Machines Disabled . | . . . . . . . Actions | -11 -10 -9 -8 -7 -7 -7 --------- Run | Scr Mat Mat Mat Fac Low Dat Total 2132 | 52 384 269 330 713 249 135 Wait 73 | . 2 11 2 27 . 31 Move 1714 | 42 314 184 260 584 248 82 Hop . | . . . . . . . Pick Up 49 | 4 16 9 15 5 . . Fast Attach 21 | 6 4 3 5 2 1 . Attach 19 | . 2 4 3 3 . 7 Detach 7 | . 3 1 1 2 . . Swap 40 | . 7 13 8 10 . 2 Drop 44 | . 1 12 23 8 . . Fire 136 | . 35 28 12 48 . 13 Melee 29 | . . 4 1 24 . . Ram . | . . . . . . . Kick . | . . . . . . . Crush . | . . . . . . . Escape Stasis . | . . . . . . . Rewire . | . . . . . . . Trap . | . . . . . . . Miscellaneous . | . . . . . . . Route ------- -11/Scrapyard -10/Materials -9/Materials -8/Materials -7/Factory -7/Lower Caves -7/Data Miner (discovered 1 exit: [*Pro]) History --------- Turn | Location | Event 23 | -11/Scrapyard | Discovered new exit (range 15) 66 | -11/Scrapyard | Entered Materials 316 | -10/Materials | Build established: Mutant 439 | -10/Materials | Core integrity fell below 50% 615 | -10/Materials | Discovered new exit (range 16) 651 | -10/Materials | Entered another Materials area 651 | -9/Materials | Evolved 2 slots: Utility x1, Weapon x1 1008 | -9/Materials | Discovered new exit (range 18) 1056 | -9/Materials | Entered another Materials area 1056 | -8/Materials | Evolved 2 slots: Propulsion x1, Utility x1 1450 | -8/Materials | Discovered new exit (range 4) 1506 | -8/Materials | Entered Factory 1506 | -7/Factory | Evolved 2 slots: Utility x2 2496 | -7/Factory | Discovered new exit (range 6) 2500 | -7/Factory | Identified exit to Lower Caves 2507 | -7/Factory | Entered Lower Caves 2557 | -7/Lower Caves | Encountered a Warlord checkpoint 2801 | -7/Lower Caves | Build established: Gunner 2807 | -7/Lower Caves | A Derelict revealed a hidden shortcut to meet someone special 2818 | -7/Lower Caves | Identified exit to Data Miner 2819 | -7/Lower Caves | Entered Data Miner 2819 | -7/Data Miner | Discovered new exit (range 6) 2841 | -7/Data Miner | Met Data Miner 2872 | -7/Data Miner | Learned location of Section 7 (-2) 2872 | -7/Data Miner | Acquired the access code to Warlord's prototype stash 2893 | -7/Data Miner | Received God Mode back door access code from Data Miner 2908 | -7/Data Miner | Data Conduit disabled 2987 | -7/Data Miner | Core integrity fell below 50% 3001 | -7/Data Miner | Core integrity fell below 20% 3006 | -7/Data Miner | Destroyed by Enhanced Grunt with Neutron Cannon Last Messages --------------- 02943_ Arm. Wheel destroyed. 02943_ Slug penetrates Enhanced Grunt. 02953_ Enhanced Grunt suffers critical hit (Destroy). 02955_ Overheating: System interference. 02955_ Gauss Cannon temporarily disabled. 02957_ Slug Cannon destroyed. 02964_ Gauss Cannon destroyed. 02965_ Imp. Medium Armor Plating destroyed. 02967_ Prc. Assault Rifle destroyed. 02968_ Gauss Cannon destroyed. 02968_ Arm. Huge Wheel destroyed. 02971_ Imp. Ion Engine destroyed. 02971_ Wheel destroyed. 02974_ Ion Engine destroyed. 02975_ S,XELH>Q KHWP56T8YEVKOAUDD2IN0T7Q 02980_ Imp. Light Armor Plating destroyed. 02982_ Rocket Launcher destroyed. 02982_ Adv. EMP Blaster destroyed. 02985_ Enhanced Grunt knocked back. 02992_ Gauss Cannon destroyed. Map ----- +----------------------------------------------------+ | | | | | | | | | | | | | | | | | | | | | | | ????????????????????????????????????? | | ????????????????????????????????????? | | ????????????????????????????????????? | | ????????????????????????????????????? | | ????????????????????????????????????? | | ????#################??????????????## | | ???##"""""""""""""""######????????## | | ??##""""""""" ""# ######## | | ??#"""""""""" % | | ??#"""""" g | | ??#""""" =! | | ??#""" %g | | ??#"""" g | | ??#"""" """""""""" | | ??#""""" " @ " "########### | | ??##"""""" "###?????????? | | ???##""""" "#####???????????? | | ????######;#"## "#???????????????? | | ?????????###"### "#???????????????? | | ???????????#"### "#???????????????? | | ???????????#"## "#???????????????? | | ???????????#"## "#???????????????? | | ???????????#"# "#???????????????? | | ?????????????### "#???????????????? | | ???????????????# "##??????????????? | | ??????????????## ""#??????????????? | | ???????????#?## ""#??????????????? | | ?????????"##"#"X ""#??????????????? | | ?????????"""""" "#####??????????? | | ?????????#""""" X"""""#??????????? | | ?????????###"#"X "##"##??????????? | | ???????????#"## X""""#???????????? | | ??????????????## "##"#???????????? | | ???????????????#######??#???????????? | | ????????????????????????????????????? | | ????????????????????????????????????? | | ????????????????????????????????????? | | ????????????????????????????????????? | | ????????????????????????????????????? | +----------------------------------------------------+ Best States ------------- Heat Dissipation 41 Energy Generation 12 Energy Capacity 265 Matter Stores 300 Matter Capacity 300 Sight Range 18 Robot Scan Range 15 Terrain Scan Density 10 Armor Coverage 225 Evasion (%) 41 Targeting Accuracy 8 Recoil Reduction 2 Offensive Hacking 10 Item Schematics ----------------- Combat Drone Bay | -7/Data Miner | Free Lgt. Regenerative Plating | -7/Data Miner | Free Cmb. Gravmag System | -7/Data Miner | Free Exp. Sensor Array | -7/Data Miner | Free Exp. Terrain Scan Processor | -7/Data Miner | Free Exp. Targeting Computer | -7/Data Miner | Free Tactical Coordination Suite | -7/Data Miner | Free Exp. Transmission Jammer | -7/Data Miner | Free Exp. ECM Suite | -7/Data Miner | Free Plasma Sword | -7/Data Miner | Free Robot Schematics ------------------ S-27 Virus | -7/Data Miner | Free G-50 Soldier | -7/Data Miner | Free G-67 Veteran | -7/Data Miner | Free L-41 Fighter | -7/Data Miner | Free H-66 Slayer | -7/Data Miner | Free P-70 Sage | -7/Data Miner | Free I-36 Angel | -7/Data Miner | Free I-47 Archangel | -7/Data Miner | Free Fabricated ------------ Nothing Alien Tech Used ----------------- None Achievements -------------- None Challenges ------------ None Game ------ Seed CorruptionPrecisionBox Manual? 0 Play Time 00:45:10 Cumulative 411.4 hours Start 2021.09.14 @ 04:24:20 End 2021.09.14 @ 05:09:41 Sessions 1 Manual Loads 0 Difficulty Rogue Special Mode None Game No. 68 Rogue 37 Adventurer 31 Explorer 0 Win Type - Total 22 Types 17/0/2/3/0/0/0/0/0 Lore% 61 Gallery% 75 Achievement% 57 Wizard Run 0 Options --------- ASCII 0 Keyboard 0 Movement Arrows Keybinds 0 Fullscreen 1 Font 20/Terminus Map View 66x50 Tactical HUD 1 Map Filters NONE Filters NONE Steam 1 RUN: 96da92a2-0611-4647-9477-a99b61627459